Cogmind - Beta 9.2 @@@ ROGUE MODE // 2019.11.13 @ 11:22:26 Player: Pimski Result: Destroyed by 8R-AWN with 8R-AWN's Boregun Performance ------------- Evolutions (0) 0 Regions Visited (3) 600 Robots Destroyed (36) 180 Value Destroyed (216) 216 Prototype IDs (28) 560 Alien Tech Used (0) 0 Bonus (-368) -368 TOTAL SCORE: 1188 Bonus ------- Aligned with FarCom 300 Friendly Fire -668 Cogmind --------- Core Integrity 0/250 Matter 271/300 Energy 275/275 System Corruption 0% Temperature Cool (0) Movement Treading (200) Ox2 Location -10/Exiles Parts ------- > --- POWER (1) -------- Deuterium Engine > --- PROPULSION (2) --- Light Treads > --- UTILITY (2) ------ High-capacity Storage Unit Hardened Medium Armor Plating > --- WEAPON (2) ------- Heavy Flail > --- INVENTORY (12) --- Compact Wheel Medium Matter Pod (70) Large Matter Pod (150) High-capacity Matter Pod (200) Core Shielding Firepult Light Assault Rifle Light Assault Rifle Light Assault Rifle Improved Grenade Launcher Peak State ------------ > --- POWER ------------ Deuterium Engine > --- PROPULSION ------- Light Treads Wheel > --- UTILITY ---------- High-capacity Storage Unit Hardened Medium Armor Plating > --- WEAPON ----------- Light Assault Rifle Improved Grenade Launcher > --- INVENTORY -------- Light Ion Engine Compact Wheel Large Matter Pod High-capacity Matter Pod Core Shielding Firepult Light Assault Rifle Light Assault Rifle Light Assault Rifle Heavy Flail [Rating: 16] Favorites ----------- Power Light Ion Engine Engine Light Ion Engine Propulsion Light Treads Treads Light Treads Leg Aluminum Leg Wheel Wheel Utility Medium Storage Unit Device Improved Terrain Scanner Storage Medium Storage Unit Protection Hardened Medium Armor Plating Weapon Small Laser Energy Gun Small Laser Ballistic Gun Light Assault Rifle Launcher Improved Grenade Launcher Impact Weapon Heavy Flail Build | -11 -10 -10 -10 ------- Run | Scr Mat Min Exi Slots Evolved . | . . . . Power . | . . . . Propulsion . | . . . . Utility . | . . . . Weapon . | . . . . Parts Attached 20 | 1 5 10 4 Power 2 | . . 2 . Engine 2 | . . 2 . Core . | . . . . Reactor . | . . . . Propulsion 5 | . 2 3 . Treads 3 | . 2 1 . Leg . | . . . . Wheel 2 | . . 2 . Hover . | . . . . Flight . | . . . . Utility 6 | 1 2 . 3 Device 1 | 1 . . . Storage 4 | . 2 . 2 Processor . | . . . . Hackware . | . . . . Protection 1 | . . . 1 Artifact . | . . . . Weapon 7 | . 1 5 1 Energy Gun 3 | . 1 2 . Energy Cannon . | . . . . Ballistic Gun 1 | . . 1 . Ballistic Cannon . | . . . . Launcher 2 | . . 2 . Special Weapon . | . . . . Impact Weapon 1 | . . . 1 Slashing Weapon . | . . . . Piercing Weapon . | . . . . Special Melee Weapon . | . . . . Unidentified Prototypes . | . . . . Parts Lost 7 | . . 5 2 Power 1 | . . 1 . Propulsion 3 | . . 2 1 Utility . | . . . . Weapon 3 | . . 2 1 Highest Loss Streak 2 | . . 2 2 Average Slot Usage (%) 98 | . 100 98 99 Engine 13 | . 14 13 14 Treads 21 | . 26 25 14 Wheel 5 | . . 1 13 Device 1 | . 6 . . Storage 25 | . 22 28 25 Protection 1 | . . . 2 Energy Gun 10 | . 28 11 . Ballistic Gun 6 | . . 3 13 Launcher 10 | . . 12 12 Naked Turns . | . . . . Heaviest Build 80 | 10 21 32 80 Greatest Support 40 | 20 40 40 10 Greatest Overweight (x) 7 | . . 3 7 Average Overweight (x) 2 | . . . 5 Largest Inventory Capacity 20 | 6 12 12 20 Average Capacity 13 | 6 9 12 16 Most Carried 17 | 6 12 12 17 Average Carried 11 | 6 9 11 13 Final Capacity 12 | 6 12 12 12 Final Carried 12 | 6 12 12 11 Class Distribution -------------------- 81% | Mutant 18% | Hauler-Mutant Dominant Class ---------------- Mutant | -10/Materials Mutant | -10/Mines Hauler-Mutant | -10/Exiles Resources | -11 -10 -10 -10 ----------- Run | Scr Mat Min Exi Matter Collected 1024 | 210 278 506 30 Remotely . | . . . . Salvage Created 508 | 106 273 116 13 Parts 22 | 4 15 3 . Haulers Intercepted 1 | . 1 . . Recyclers Shooed 1 | . . 1 . Parts Field Recycled . | . . . . Retrieved Matter . | . . . . Parts Self-Destructed . | . . . . Prevented . | . . . . Kills | -11 -10 -10 -10 ------- Run | Scr Mat Min Exi Combat Hostiles Destroyed 28 | . 7 18 3 Guns 7 | . 7 . . AOE 21 | . . 18 3 Classes Destroyed 7 | 2 3 2 . Worker 1 | . . 1 . Tunneler 1 | 1 . . . Hauler 1 | . 1 . . Recycler 1 | 1 . . . Swarmer 3 | . 3 . . Grunt 5 | . 4 1 . Assembled 24 | . . 17 7 Best Kill Streak 11 | 2 3 11 3 Combat Bots Only 11 | . 3 11 3 Max Kills in Single Turn 4 | 1 2 2 4 Gunslinging 1 | . 1 . . Exploded 3 | . . 2 3 Melee . | . . . . Uniques/NPCs Destroyed . | . . . . Combat | -11 -10 -10 -10 -------- Run | Scr Mat Min Exi Damage Taken 1260 | . 225 643 392 Core 269 | . 39 143 87 Absorbed by Shields . | . . . . Core Remaining (%) 100 | 100 . . . Volleys Fired 63 | 5 24 29 5 Largest 2 | 2 2 2 1 Hottest 80 | 80 80 80 36 Shots Fired 102 | 10 48 39 5 Gun 80 | 10 48 19 3 Cannon . | . . . . Launcher 22 | . . 20 2 Special . | . . . . Kinetic 3 | . . . 3 Thermal 77 | 10 48 19 . Explosive 22 | . . 20 2 Electromagnetic . | . . . . Robot Hit Streak 11 | 3 11 10 3 Robot Miss Streak 5 | 1 4 5 1 Penetration Max . | . . . . Secondary Targets 2 | . 2 . . Max Gunslinging Chain 1 | . 1 . . Shots Hit Robots 75 | 7 33 21 14 Core Hits 58 | 3 13 29 13 Critical Hits . | . . . . Critical Kills . | . . . . Critical Parts Destroyed . | . . . . Melee Attacks 13 | . . . 13 Impact 13 | . . . 13 Slashing . | . . . . Piercing . | . . . . Sneak Attacks . | . . . . Combat Hostiles . | . . . . Follow-up Attacks . | . . . . Damage Inflicted 2440 | 77 372 1265 726 Guns 587 | 77 372 122 16 Cannons . | . . . . Explosions 1563 | . . 1134 429 Melee 281 | . . . 281 Ramming 9 | . . 9 . Kinetic 16 | . . . 16 Thermal 571 | 77 372 122 . Explosive 1563 | . . 1134 429 Electromagnetic . | . . . . Impact 281 | . . . 281 Slashing . | . . . . Piercing . | . . . . Highest Corruption . | . . . . Average Corruption . | . . . . Corruption Purged . | . . . . Overload Shots . | . . . . Overflow Damage 76 | . . 46 30 Projectiles . | . . . . Explosions 56 | . . 46 10 Melee 20 | . . . 20 Knockbacks 1 | . . . 1 Impact 1 | . . . 1 Kinetic . | . . . . Secondary . | . . . . Self-Inflicted Damage 57 | . . 57 . Shots 2 | . . 2 . Rammed 2 | . . 2 . Targets Rammed 2 | . . 2 . Kicked . | . . . . Crushed . | . . . . Highest Temperature 270 | 72 270 88 16 Average Temperature 65 | 39 90 29 7 Received Heat Transfer 148 | . 102 46 . Effects 1 | . 1 . . Energy Bleed 1 | . 1 . . Siege Activations . | . . . . Robots Corrupted . | . . . . Combat Hostiles . | . . . . Parts Fried . | . . . . Impact Corruptions 1 | . . . 1 Robots Melted . | . . . . Combat Hostiles . | . . . . Parts Melted 3 | . 3 . . Heat Transferred 1300 | 175 850 275 . Parts Sabotaged . | . . . . Parts Stolen . | . . . . Parts Stripped . | . . . . Power Chain Reactions . | . . . . Missiles Intercepted . | . . . . Alert | -11 -10 -10 -10 ------- Run | Scr Mat Min Exi Peak Influence 216 | 10 216 84 . Average Influence 54 | 5 104 34 . Maximum Alert Level 1 | . 1 . . Low Security (%) 94 | 100 79 100 . Level 1 5 | . 20 . . Level 2 . | . . . . Level 3 . | . . . . Level 4 . | . . . . Level 5 . | . . . . High Security . | . . . . Max Security . | . . . . Squads Dispatched 2 | . 1 1 . Investigation 1 | . . 1 . Extermination . | . . . . Reinforcement 1 | . 1 . . Assault . | . . . . Garrison . | . . . . Intercept . | . . . . Construction Impeded . | . . . . Haulers Reinforced . | . . . . Stealth | -11 -10 -10 -10 --------- Run | Scr Mat Min Exi Distress Signals . | . . . . Communications Jammed . | . . . . Distress Signals . | . . . . Times Spotted 43 | . 15 24 4 Peak Tracking Total 5 | . 5 3 5 Tactical Retreats 5 | . 1 4 . Traps | -11 -10 -10 -10 ------- Run | Scr Mat Min Exi Traps Triggered . | . . . . Indirectly . | . . . . Trap Hack Attempts . | . . . . Triggered . | . . . . Disarmed . | . . . . Reprogrammed . | . . . . Reused . | . . . . Traps Extracted . | . . . . Installed . | . . . . Triggered . | . . . . Machines | -11 -10 -10 -10 ---------- Run | Scr Mat Min Exi Machines Disabled 3 | . . . 3 Max in Single Turn 1 | . . . 1 Machines Sabotaged . | . . . . Garrisons Compromised . | . . . . Overloaded Fab Kills . | . . . . Fab Network Shutdowns . | . . . . Hacking | -11 -10 -10 -10 --------- Run | Scr Mat Min Exi Machines Accessed 5 | . 2 1 2 Terminals 2 | . 2 . . Fabricators . | . . . . Repair Stations . | . . . . Recycling Units . | . . . . Scanalyzers . | . . . . Garrison Access . | . . . . Total Hacks 10 | . 7 1 2 Successful 8 | . 5 1 2 Failed 2 | . 2 . . Catastrophic . | . . . . Database Lockouts . | . . . . Manual 8 | . 7 . 1 Terminals 7 | . 7 . . Fabricators . | . . . . Repair Stations . | . . . . Recycling Units . | . . . . Scanalyzers . | . . . . Garrison Access . | . . . . Terminal Hacks 7 | . 4 1 2 Record 1 | . . . 1 Prototype ID Bank 3 | . 3 . . Open Door 1 | . . 1 . Branch Access Points 1 | . 1 . . EX-Prototype ID Bank 1 | . . . 1 Fabricator Hacks . | . . . . Repair Station Hacks . | . . . . Recycling Unit Hacks . | . . . . Scanalyzer . | . . . . Garrison Access Hacks . | . . . . Unauthorized Hacks 2 | . 2 . . Terminals 1 | . 1 . . Botnet 1 | . 1 . . Fabricators . | . . . . Repair Stations . | . . . . Recycling Units . | . . . . Scanalyzers . | . . . . Garrison Access . | . . . . Data Cores Recovered . | . . . . Used . | . . . . Hacking Detections 2 | . 2 . . Full Trace Events . | . . . . Feedback Events . | . . . . Feedback Blocked . | . . . . Robot Schematics Acquired . | . . . . Robots Built . | . . . . Matter . | . . . . Time . | . . . . Total Robot Build Rating . | . . . . Part Schematics Acquired . | . . . . Parts Built . | . . . . Matter . | . . . . Time . | . . . . Total Part Build Rating . | . . . . Parts Repaired . | . . . . Time . | . . . . Parts Recycled . | . . . . Recycled Matter . | . . . . Retrieved Matter . | . . . . Retrieved Components . | . . . . Parts Scanalyzed . | . . . . Part Schematics Acquired . | . . . . Parts Damaged . | . . . . Bothacking | -11 -10 -10 -10 ------------ Run | Scr Mat Min Exi Used RIF Installer . | . . . . Robots Hacked . | . . . . Non-combat . | . . . . Combat . | . . . . Robot Hacks Applied . | . . . . Relay Couplers Released . | . . . . Robots Rewired . | . . . . Allies Hacked . | . . . . Hacks Repelled . | . . . . Allies | -11 -10 -10 -10 -------- Run | Scr Mat Min Exi Total Allies . | . . . . Largest Group . | . . . . Highest-Rated Group . | . . . . Highest-Rated Ally . | . . . . Total Orders 1 | . . . 1 GOTO 1 | . . . 1 Ally Attacks . | . . . . Total Damage . | . . . . Kills . | . . . . Allies Corrupted . | . . . . Allies Melted . | . . . . Intel | -11 -10 -10 -10 ------- Run | Scr Mat Min Exi Robot Analysis Total . | . . . . Derelict Logs Recovered 1 | . . 1 . Drone Launches 1 | . . . 1 Drone Recoveries . | . . . . Exploration | -11 -10 -10 -10 ------------- Run | Scr Mat Min Exi Turns Passed 1890 | 23 352 861 654 Spaces Moved 1093 | 6 161 488 438 Core . | . . . . Treads 565 | . 149 416 . Legs 18 | 6 12 . . Wheels 510 | . . 72 438 Hover . | . . . . Flight . | . . . . Fastest Speed 110 | 120 120 110 110 Average Speed 146 | 120 157 154 134 Slowest Speed 180 | 120 160 180 150 Overloaded Moves . | . . . . Propulsion Burnouts . | . . . . Robots Hopped . | . . . . Cave-ins Triggered . | . . . . Exploration Rate (%) 47 | 2 33 86 70 Regions Visited 3 Branch Regions 2 Pre-discovered Areas 1 | . . . 1 Known Exits Taken 2 | . 1 1 . Unknown Exits Taken 1 | 1 . . . Scrap Searched 1 | . . 1 . Spaces Dug . | . . . . Terrain Destroyed 158 | . . 143 15 Melee . | . . . . Projectile . | . . . . AOE 158 | . . 143 15 Actions | -11 -10 -10 -10 --------- Run | Scr Mat Min Exi Total 1262 | 11 215 558 478 Wait 25 | . 7 15 3 Move 1090 | 5 160 487 438 Hop . | . . . . Pick Up 25 | . 12 8 5 Fast Attach 4 | 1 . 3 . Attach 8 | . 1 6 1 Detach . | . . . . Swap 8 | . 4 1 3 Drop 23 | . 7 7 9 Fire 63 | 5 24 29 5 Melee 13 | . . . 13 Ram . | . . . . Kick . | . . . . Crush 2 | . . 2 . Escape Stasis . | . . . . Rewire . | . . . . Trap . | . . . . Miscellaneous 1 | . . . 1 Route ------- -11/Scrapyard -10/Materials (discovered 2 exits: *Min x2) -10/Mines (discovered 3 exits: [*Mat x2] / *Exi) -10/Exiles (discovered 1 exit: [*Min]) History --------- Turn | Location | Event 14 | -11/Scrapyard | Discovered new exit (range 2) 24 | -11/Scrapyard | Entered Materials 256 | -10/Materials | Identified exit to Mines 304 | -10/Materials | Build established: Mutant 376 | -10/Materials | Entered Mines 391 | -10/Mines | Assembled infested the area 427 | -10/Mines | Core integrity fell below 50% 451 | -10/Mines | Discovered new exit (range 9) 568 | -10/Mines | Destroyed 11 combat bots 671 | -10/Mines | Discovered new exit (range 15) 999 | -10/Mines | Met a Derelict shopkeep closing up shop 1125 | -10/Mines | Identified exit to Exiles 1233 | -10/Mines | Deemed a non-threat by the Exiles lab entrance 1237 | -10/Mines | Entered Exiles 1263 | -10/Exiles | Met 8R-AWN 1283 | -10/Exiles | Met EX-HEX 1337 | -10/Exiles | Met EX-DEC 1356 | -10/Exiles | Learned location of Zion (-7) 1495 | -10/Exiles | Met EX-BIN 1516 | -10/Exiles | Aligned with FarCom system 1517 | -10/Exiles | Given EX-Vault access code 1552 | -10/Exiles | Opened EX-Vault 1566 | -10/Exiles | Found Firepult 1599 | -10/Exiles | Warned to stay clear of 0b10 Research branches 1681 | -10/Exiles | Build established: Hauler-Mutant 1838 | -10/Exiles | Discovered new exit (range 86) 1839 | -10/Exiles | Attacked by the Exiles 1867 | -10/Exiles | Core integrity fell below 20% 1891 | -10/Exiles | Destroyed by 8R-AWN with 8R-AWN's Boregun Last Messages --------------- 01866_ HV Slug penetrates Wall. 01871_ Penetrated by HV Slug. 01871_ Critical hit. 01873_ Penetrated by HV Slug. 01873_ Critical hit. 01875_ Penetrated by HV Slug. 01875_ Critical hit. 01875_ HV Slug penetrates Wall. 01875_ HV Slug penetrates Earth. 01877_ Penetrated by HV Slug. 01877_ Critical hit. 01880_ Penetrated by HV Slug. 01882_ HV Slug penetrates Wall. 01884_ Penetrated by HV Slug. 01884_ Critical hit. 01884_ Penetrated by HV Slug. 01886_ HV Slug penetrates Wall. 01889_ Penetrated by HV Slug. 01889_ Wheel destroyed. 01889_ Penetrated by HV Slug. Map ----- +----------------------------------------------------+ | """##?????????????????????????????????????? | | """"""????????????????????????????????????? | | """##?????????????????????????????????????? | | "X" """"" ????????????????????????????????????? | | """ # ?????????????????????????????????????? | | """""""""#??????????????????????????????????????? | | ###########??????????????????????????????????????? | | #????????????????????????????????????????????????? | | #????????????????????????????????????????????????? | | ##???????????????????????????????????????????????? | | ##???###########????????????????????????????????? | | #####"""""""""##???????????????????????????????? | | " """!""""##??????????????????????????????? | | ""!!*" #??????????????????????????????? | | "!! """#??????????????????????????????? | | ! a"#???????????#####??????????????? | | " "##?????????##" #??????????????# | | "###???????#" #?????????????## | | ""#?##???##" ##????????????# | | "#? ?### ###????????### | | #""" ### ?# ########## | | ##""" ## #; #""""## | | ?#"""" #;; * | | ##"" ## * | | #"""" #### | | " @ ""#?#"""""#### | | #g""##?#######??#### | | ######??????????????##### | | ##???????????????????????## | | " ##?????????????????????????? | | "" """ #??????????????????????????? | | """ " " ""#"% #??????????????????????????? | | ####""" """## ???????????????????????????? | | ???###""""### #???????????????????????????? | | ##???######?#### ##????????????????????????????? | | !#?????????????####??????????????????????????????? | | !#???????????????????????????????????????????????? | | "#???????????????????????????????????????????????? | | "#???????????????????????????????????????????????? | | ##???????????????????????????????????????????????? | | ?????????????????????????????????????????????????? | | ?????????????????????????????????????????????????? | | ?????????????????????????????????????????????????? | | ?????????????????????????????????????????????????? | | ?????????????????????????????????????????????????? | | ?????????????????????????????????????????????????? | | ?????????????????????????????????????????????????? | | ?????????????????????????????????????????????????? | | ?????????????????????????????????????????????????? | | ?????????????????????????????????????????????????? | +----------------------------------------------------+ Best States ------------- Heat Dissipation 25 Energy Generation 14 Energy Capacity 275 Matter Stores 300 Matter Capacity 300 Sight Range 16 Terrain Scan Range 16 Terrain Scan Density 10 Armor Coverage 225 Evasion (%) 40 Recoil Reduction 2 Item Schematics ----------------- None Robot Schematics ------------------ None Fabricated ------------ Nothing Alien Tech Used ----------------- None Achievements -------------- None Challenges ------------ None Game ------ Seed PlasmaFireKinecellerator Manual? 0 Play Time 00:18:44 Cumulative 596.5 hours Start 2019.11.13 @ 10:52:46 End 2019.11.13 @ 11:22:26 Sessions 1 Manual Loads 0 Difficulty Rogue Special Mode None Game No. 381 Rogue 381 Adventurer 0 Explorer 0 Win Type - Total 99 Types 66/6/7/10/5/1/4 Lore% 96 Gallery% 94 Achievement% 80 Wizard Run 0 Options --------- ASCII 0 Keyboard 0 Movement Numpad Keybinds 0 Fullscreen 2 Font 18/SmallcapsGlow Map View 76x50 Tactical HUD 1 Map Filters NONE Filters NONE Steam 1 RUN: 4ff3908c-79fb-49a9-aaa3-2b7dd642c9be